Cogmind - Beta 13 @@@ ROGUE MODE // 2024.04.11 @ 16:41:50 Player: luckinvolved Result: Destroyed by G-47 Trooper with Particle Gun Performance ------------- Evolutions (2) 1000 Regions Visited (3) 600 Robots Destroyed (58) 290 Value Destroyed (1481) 1481 Prototype IDs (3) 60 Alien Tech Used (0) 0 Bonus (0) 0 TOTAL SCORE: 3431 Bonus ------- None Cogmind --------- Core Integrity 0/550 Matter 155/300 Energy 128/280 System Corruption 1% Temperature Cool (27) Movement Core (550) Ox10 Location -8/Materials Parts ------- > --- POWER (1) -------- Heavy Ion Engine > --- PROPULSION (2) --- (None) > --- UTILITY (6) ------ Large Storage Unit Structural Scanner Trap Scanner Terrain Scan Processor Improved Terrain Scan Processor > --- WEAPON (2) ------- (None) > --- INVENTORY (15) --- Light Nuclear Core Light Treads High-capacity Storage Unit High-capacity Storage Unit Compact Matter Pod (150) Peak State ------------ > --- POWER ------------ Heavy Ion Engine > --- PROPULSION ------- Improved Treads Improved Treads > --- UTILITY ---------- Improved Heat Sink Large Storage Unit Structural Scanner Improved Terrain Scanner Terrain Scan Processor Improved Terrain Scan Processor > --- WEAPON ----------- Heavy Laser Heavy Laser > --- INVENTORY -------- Heavy Ion Engine Heavy Ion Engine Light Deuterium Engine Light Nuclear Core Light Treads Light Treads Improved Treads Improved Treads Improved Treads Large Storage Unit Compact Matter Pod Heavy Laser Heavy Laser Mini Grenade Launcher [Rating: 31] Favorites ----------- Power Light Ion Engine Engine Light Ion Engine Propulsion Improved Treads Treads Improved Treads Leg Titanium Leg Utility Large Storage Unit Device Structural Scanner Storage Large Storage Unit Processor Terrain Scan Processor Protection Medium Armor Plating Weapon Medium Laser Energy Gun Medium Laser Ballistic Gun Improved Assault Rifle Launcher Mini Grenade Launcher Build | -11 -10 -9 -8 ------- Run | Yrd Mat Mat Mat Slots Evolved 4 | . . 2 2 Power . | . . . . Propulsion . | . . . . Utility 4 | . . 2 2 Weapon . | . . . . Parts Attached 55 | 7 5 16 27 Power 8 | 1 . 3 4 Engine 8 | 1 . 3 4 Core . | . . . . Reactor . | . . . . Propulsion 16 | 2 2 4 8 Treads 15 | 2 2 4 7 Leg 1 | . . . 1 Wheel . | . . . . Hover . | . . . . Flight . | . . . . Utility 16 | 2 2 4 8 Device 7 | 1 1 2 3 Storage 4 | 1 1 . 2 Processor 4 | . . 1 3 Hackware . | . . . . Protection 1 | . . 1 . Artifact . | . . . . Weapon 15 | 2 1 5 7 Energy Gun 12 | 2 1 3 6 Energy Cannon . | . . . . Ballistic Gun 1 | . . 1 . Ballistic Cannon . | . . . . Launcher 2 | . . 1 1 Special Weapon . | . . . . Impact Weapon . | . . . . Slashing Weapon . | . . . . Piercing Weapon . | . . . . Special Melee Weapon . | . . . . Unidentified Prototypes 3 | . . 2 1 Parts Lost 26 | . . 6 20 Power 6 | . . 3 3 Propulsion 8 | . . 1 7 Utility 5 | . . 1 4 Weapon 7 | . . 1 6 Highest Loss Streak 10 | . . 2 10 To Critical Strikes . | . . . . Average Slot Usage (%) 95 | . 98 99 92 Engine 10 | . 14 10 8 Treads 20 | . 27 22 16 Device 20 | . 14 19 22 Storage 11 | . 14 11 10 Processor 11 | . . 10 16 Protection 1 | . . 3 . Energy Gun 17 | . 27 14 15 Ballistic Gun 2 | . . 7 . Naked Turns . | . . . . Heaviest Build 44 | 13 28 37 44 Greatest Support 46 | 40 40 46 46 Greatest Overweight (x) 10 | 1 8 1 10 Average Overweight (x) . | . . . . Largest Inventory Capacity 15 | 8 15 15 15 Average Capacity 14 | 7 14 15 15 Most Carried 15 | 6 12 15 15 Average Carried 11 | 3 9 12 12 Final Capacity 15 | 8 15 15 15 Final Carried 14 | 6 12 14 5 Class Distribution -------------------- 43% | Mutant 41% | Skirmisher 14% | Scavenger-Skirmisher Dominant Class ---------------- Mutant | -10/Materials Skirmisher | -9/Materials Skirmisher | -8/Materials Resources | -11 -10 -9 -8 ----------- Run | Yrd Mat Mat Mat Matter Collected 900 | 270 50 188 392 Remotely . | . . . . Salvage Created 1961 | 104 253 685 919 Parts 102 | 6 17 35 44 Haulers Intercepted 4 | . 1 1 2 Recyclers Shooed 2 | . . . 2 Parts Field Recycled . | . . . . Retrieved Matter . | . . . . Parts Self-Destructed . | . . . . Prevented . | . . . . Kills | -11 -10 -9 -8 ------- Run | Yrd Mat Mat Mat Combat Hostiles Destroyed 41 | . 4 19 18 Guns 36 | . 2 19 15 AOE 3 | . . . 3 Classes Destroyed 11 | 3 3 1 4 Worker 1 | 1 . . . Builder 4 | . . . 4 Tunneler 1 | 1 . . . Hauler 4 | . 1 1 2 Recycler 2 | 1 . 1 . Mechanic 1 | . . . 1 Watcher 4 | . 3 1 . Swarmer 11 | . . 9 2 Grunt 24 | . 4 10 10 Sentry 5 | . . . 5 Hunter 1 | . . . 1 Best Kill Streak 6 | 3 4 6 6 Combat Bots Only 6 | . 3 6 4 Max Kills in Single Turn 3 | 1 1 2 3 Gunslinging 1 | . . 1 . Exploded 2 | . . . 2 Melee . | . . . . Uniques/NPCs Destroyed . | . . . . Combat | -11 -10 -9 -8 -------- Run | Yrd Mat Mat Mat Hostile Shots Fired 378 | . 15 132 231 Missed 89 | . 1 33 55 Damage Taken 3836 | . 152 980 2704 Core 726 | . 11 156 559 Absorbed by Shields . | . . . . Core Remaining (%) 85 | 100 95 61 . Volleys Fired 151 | 5 22 59 65 Largest 2 | 2 2 2 2 Hottest 138 | 100 100 100 138 Shots Fired 298 | 10 43 117 128 Gun 288 | 10 43 117 118 Cannon . | . . . . Launcher 10 | . . . 10 Special . | . . . . Kinetic 38 | . . 38 . Thermal 247 | 10 43 76 118 Explosive 10 | . . . 10 Electromagnetic 3 | . . 3 . Robot Hit Streak 12 | 3 8 11 12 Robot Miss Streak 6 | 1 3 5 6 Penetration Max . | . . . . Secondary Targets 3 | . . 3 . Max Gunslinging Chain 1 | . . 1 . Shots Hit Robots 195 | 6 31 70 88 Core Hits 95 | 4 10 31 50 Critical Kills . | . . . . Critical Parts Destroyed . | . . . . Critical Strikes 9 | . 2 4 3 Burn 9 | . 2 4 3 Melee Attacks . | . . . . Impact . | . . . . Slashing . | . . . . Piercing . | . . . . Sneak Attacks . | . . . . Combat Hostiles . | . . . . Follow-up Attacks . | . . . . Damage Inflicted 4023 | 76 382 1006 2559 Guns 2991 | 76 382 1006 1527 Cannons . | . . . . Explosions 1032 | . . . 1032 Melee . | . . . . Ramming . | . . . . Kinetic 344 | . . 344 . Thermal 2619 | 76 382 634 1527 Explosive 1032 | . . . 1032 Electromagnetic 28 | . . 28 . Impact . | . . . . Slashing . | . . . . Piercing . | . . . . Highest Corruption 1 | . . . 1 Average Corruption 1 | . . . 1 Corruption Purged . | . . . . Corruption Blocked . | . . . . Effects 10 | . . . 10 Message Errors 3 | . . . 3 Matter Fused 4 | . . . 4 Heat Flow Errors 1 | . . . 1 Data Loss (minor) 1 | . . . 1 Alerts 1 | . . . 1 Overload Shots . | . . . . Overflow Damage 2 | . . . 2 Projectiles . | . . . . Explosions 2 | . . . 2 Melee . | . . . . Knockbacks . | . . . . Impact . | . . . . Kinetic . | . . . . Secondary . | . . . . Self-Inflicted Damage 59 | . . . 59 Shots 3 | . . . 3 Rammed . | . . . . Targets Rammed . | . . . . Kicked . | . . . . Crushed . | . . . . Highest Temperature 276 | 82 276 243 236 Average Temperature 81 | 37 96 74 85 Received Heat Transfer 1626 | . 84 354 1188 Effects 7 | . 3 . 4 Interference 7 | . 3 . 4 Siege Activations . | . . . . Robots Corrupted . | . . . . Combat Hostiles . | . . . . Parts Fried . | . . . . Impact Corruptions . | . . . . Robots Melted 3 | . 2 1 . Combat Hostiles 2 | . 2 . . Parts Melted 17 | . 8 2 7 Heat Transferred 7067 | 222 1295 2183 3367 Parts Sabotaged . | . . . . Parts Stolen . | . . . . Parts Stripped . | . . . . Power Chain Reactions . | . . . . Alert | -11 -10 -9 -8 ------- Run | Yrd Mat Mat Mat Peak Influence 395 | 15 157 366 395 Initial 154 | . 9 66 154 Average 185 | 2 70 210 231 Maximum Alert Level 1 | . . 1 1 Low Security (%) 55 | 100 100 44 42 Level 1 44 | . . 55 57 Level 2 . | . . . . Level 3 . | . . . . Level 4 . | . . . . Level 5 . | . . . . High Security . | . . . . Max Security . | . . . . Squads Dispatched 11 | . 1 2 8 Investigation 4 | . 1 1 2 Extermination . | . . . . Reinforcement 5 | . . 1 4 Assault . | . . . . Garrison 2 | . . . 2 Intercept . | . . . . Searches Triggered . | . . . . Construction Impeded 2 | . . . 2 Haulers Reinforced . | . . . . Active Scanning Responses . | . . . . Cargo Convoy Interrupts . | . . . . Stealth | -11 -10 -9 -8 --------- Run | Yrd Mat Mat Mat Distress Signals 5 | . . 1 4 Communications Jammed . | . . . . Distress Signals . | . . . . Times Spotted 77 | . 7 31 39 Peak Tracking Total 11 | . 3 8 11 Tactical Retreats 6 | . . 1 5 Traps | -11 -10 -9 -8 ------- Run | Yrd Mat Mat Mat Traps Triggered 4 | . 1 . 3 Indirectly . | . . . . Trap Hack Attempts . | . . . . Triggered . | . . . . Disarmed . | . . . . Reprogrammed . | . . . . Reused . | . . . . Traps Extracted . | . . . . Installed . | . . . . Triggered . | . . . . Machines | -11 -10 -9 -8 ---------- Run | Yrd Mat Mat Mat Machines Disabled 2 | . . 1 1 Max in Single Turn 1 | . . 1 1 Machines Repaired . | . . . . Machines Dismantled . | . . . . Machines Sabotaged . | . . . . Overloaded Fab Kills . | . . . . Hacking | -11 -10 -9 -8 --------- Run | Yrd Mat Mat Mat Machines Accessed 7 | . 2 2 3 Terminals 6 | . 2 1 3 Fabricators . | . . . . Repair Stations . | . . . . Recycling Units . | . . . . Scanalyzers 1 | . . 1 . Garrison Access . | . . . . Total Hacks 15 | . 6 5 4 Successful 4 | . . 4 . Failed 11 | . 6 1 4 Catastrophic 6 | . 2 . 4 Database Lockouts . | . . . . Manual 11 | . 6 1 4 Terminals 13 | . 6 3 4 Fabricators . | . . . . Repair Stations . | . . . . Recycling Units . | . . . . Scanalyzers 2 | . . 2 . Garrison Access . | . . . . Terminal Hacks 2 | . . 2 . Record 1 | . . 1 . Robot Analysis 1 | . . 1 . Fabricator Hacks . | . . . . Repair Station Hacks . | . . . . Recycling Unit Hacks . | . . . . Scanalyzer 2 | . . 2 . Insert Component 1 | . . 1 . Analyze 1 | . . 1 . Garrison Access Hacks . | . . . . Unauthorized Hacks . | . . . . Terminals . | . . . . Fabricators . | . . . . Repair Stations . | . . . . Recycling Units . | . . . . Scanalyzers . | . . . . Garrison Access . | . . . . Data Cores Recovered . | . . . . Used . | . . . . Hacking Detections 6 | . 2 1 3 Full Trace Events 3 | . 1 1 1 Feedback Events . | . . . . Feedback Blocked . | . . . . Robot Schematics Acquired . | . . . . Robots Built . | . . . . Authchips . | . . . . Time . | . . . . Total Robot Build Rating . | . . . . Part Schematics Acquired 1 | . . 1 . Parts Built . | . . . . Authchips . | . . . . Time . | . . . . Total Part Build Rating . | . . . . Parts Repaired . | . . . . Time . | . . . . Parts Recycled . | . . . . Recycled Matter . | . . . . Retrieved Matter . | . . . . Retrieved Components . | . . . . Parts Scanalyzed 1 | . . 1 . Part Schematics Acquired 1 | . . 1 . Parts Damaged . | . . . . Bothacking | -11 -10 -9 -8 ------------ Run | Yrd Mat Mat Mat Used RIF Installer . | . . . . Robots Hacked . | . . . . Non-combat . | . . . . Combat . | . . . . Robot Hacks Applied . | . . . . Relay Couplers Released . | . . . . Fabnet Peak Effective % . | . . . . Robots Rewired . | . . . . Allies Hacked . | . . . . Hacks Repelled . | . . . . Allies | -11 -10 -9 -8 -------- Run | Yrd Mat Mat Mat Total Allies . | . . . . Largest Group . | . . . . Highest-Rated Group . | . . . . Highest-Rated Ally . | . . . . Total Orders . | . . . . Ally Attacks . | . . . . Total Damage . | . . . . Kills . | . . . . Allies Corrupted . | . . . . Allies Melted . | . . . . Intel | -11 -10 -9 -8 ------- Run | Yrd Mat Mat Mat Robot Analysis Total 1 | . . 1 . Derelict Logs Recovered . | . . . . Drone Launches . | . . . . Drone Recoveries . | . . . . Exploration | -11 -10 -9 -8 ------------- Run | Yrd Mat Mat Mat Turns Passed 2164 | 122 358 628 1056 Spaces Moved 910 | 59 172 255 424 Core 7 | 3 1 . 3 Treads 877 | 56 171 255 395 Legs 26 | . . . 26 Wheels . | . . . . Hover . | . . . . Flight . | . . . . Fastest Speed 50 | 50 160 160 160 Average Speed 163 | 155 162 160 166 Slowest Speed 550 | 160 450 240 550 Overloaded Moves . | . . . . Propulsion Burnouts . | . . . . Robots Hopped . | . . . . Cave-ins Triggered . | . . . . Exploration Rate (%) 27 | 5 33 25 48 Regions Visited 3 Branch Regions . Pre-discovered Areas . | . . . . Known Exits Taken . | . . . . Unknown Exits Taken 3 | 1 1 1 . Scrap Searched . | . . . . Spaces Dug . | . . . . Terrain Destroyed 60 | . . . 60 Melee . | . . . . Projectile . | . . . . AOE 60 | . . . 60 Terrain Rammed . | . . . . Walls Destroyed . | . . . . Machines Disabled . | . . . . Actions | -11 -10 -9 -8 --------- Run | Yrd Mat Mat Mat Total 1292 | 76 206 358 652 Wait 115 | . . 8 107 Move 907 | 58 171 254 424 Hop . | . . . . Pick Up 37 | 6 7 10 14 Fast Attach 24 | 7 3 7 7 Attach 21 | . . 6 15 Detach 6 | . . 4 2 Swap 10 | . 2 3 5 Drop 21 | . 1 7 13 Fire 151 | 5 22 59 65 Melee . | . . . . Ram . | . . . . Kick . | . . . . Crush . | . . . . Escape Stasis . | . . . . Rewire . | . . . . Trap . | . . . . Miscellaneous . | . . . . Route ------- -11/Scrapyard -10/Materials -9/Materials -8/Materials History --------- Turn | Location | Event 8 | -11/Scrapyard | Discovered new exit (range 15) 123 | -11/Scrapyard | Entered Materials 325 | -10/Materials | Build established: Mutant 450 | -10/Materials | Discovered new exit (range 11) 481 | -10/Materials | Entered another Materials area 481 | -9/Materials | Evolved 2 slots: Utility x2 794 | -9/Materials | Build established: Skirmisher 1076 | -9/Materials | Discovered new exit (range 10) 1109 | -9/Materials | Entered another Materials area 1109 | -8/Materials | Evolved 2 slots: Utility x2 1218 | -8/Materials | Build established: Mutant 1230 | -8/Materials | Garrison activated, responded to threat 1778 | -8/Materials | Garrison activated, responded to threat 1879 | -8/Materials | Build established: Skirmisher 1950 | -8/Materials | Lost 4 parts (1p1n2w) 2063 | -8/Materials | Core integrity fell below 50% 2118 | -8/Materials | Core integrity fell below 20% 2128 | -8/Materials | Lost 10 parts (1p4n2u3w) 2165 | -8/Materials | Destroyed by G-47 Trooper with Particle Gun Last Messages --------------- 02089_ K-01 Serf collects debris. 02090_ Critical hit (Burn: +37). 02091_ K-01 Serf collects debris. 02092_ U-05 Engineer lays Concrete. 02094_ K-01 Serf collects debris. 02095_ Hvy. Laser destroyed. 02095_ Critical hit (Burn: +37). 02096_ The unstable cave ceiling collapses. 02096_ Wheel crushed. 02097_ Com. Battery destroyed. 02097_ K-01 Serf collects debris. 02107_ Acquired Titanium Leg. 02108_ U-05 Engineer builds a Door. 02115_ U-05 Engineer lays Concrete. 02118_ Triggered Alarm Trap. 02118_ An alarm sounds. 02118_ ALERT: Alarm triggered, dispatching investigation squad. 02130_ Acquired Trap Scanner. 02132_ Hvy. Ion Engine destroyed. 02163_ Titanium Leg destroyed. Map ----- +----------------------------------------------------+ | | | | | | | | | | | | | | | | | | | | | | | | | | | | | | | ?????????????????????????????????????????????????? | | ?????????????????????????????????????????????????? | | ?????????????????????????????????????????????????? | | ?????????????????????????################????????? | | ?????????????????????????################????????? | | ?????????? #######??????## + ##????????? | | ??????????#########??????## # ! ##????????? | | ?????????? ?????## # ##????????? | | ?????????? T? ### Y ##????????? | | ??????????? g ### g # ##????????? | | ?????????????????## @ # ##????????? | | ?????????????????### g # ##????????? | | ????????????????? # # ##????????? | | ?????????????????? # ^ g # ########### | | ?????????????????? + #####/############## | | ?????????????????? # "T" # """ """ """ | | ?????????????????? # + """ """ """ | | ?#???????????????? # # """ """ """ | | ?##???????????????########+####### # | | ##?##???? ##????##### ### # | | ?#???#??? # ??????????????????## # | | #?###???# # "?????????????????## ###/######### | | ???#?##?? # ?"" ??????????????## ###### | | #?##?#### # "?????????????????## ##???? | | ######### # ?? ? ?????????????## ###### | | ??### # ??? ? ????????????## #### ###### | | ##### ? # ? ???????????????## #### # | | #####? + ??????????????## #### # """ | | ##### ######??#???????????## ??## + "Y" | | ##### ?????????????? ??## # | | ##### ??? ? ???????? ? ??## # | | ######### ? ? ?? ??????? ?????#### / ] | | ######### ##??##????#??????###?????#####/####### | | ######### ####???#?##?#????# ?? ?? # # | | # ########???#??????? ???"? # # ? | +----------------------------------------------------+ Best States ------------- Heat Dissipation 45 Energy Generation 14 Energy Capacity 480 Matter Stores 300 Matter Capacity 300 Sight Range 18 Robot Scan Range 14 Terrain Scan Range 16 Terrain Scan Density 185 Armor Coverage 225 Evasion (%) 40 Recoil Reduction 2 Item Schematics ----------------- Lgt. Treads | -9/Materials | Scanalyzed Robot Schematics ------------------ None Fabricated ------------ Nothing Alien Tech Used ----------------- None Achievements -------------- Omniscient Cartographer Challenges ------------ None Game ------ Seed DerelictIonThruster Manual? 0 Play Time 00:24:26 Cumulative 17.9 hours Start 2024.04.11 @ 16:21:06 End 2024.04.11 @ 16:41:50 Sessions 1 Manual Loads 0 Difficulty Rogue Special Mode None Game No. 40 Rogue 35 Adventurer 5 Explorer 0 Win Type - Total 0 Types 0/0/0/0/0/0/0/0/0 Lore% 6 Gallery% 27 Achievement% 19 Wizard Run 0 Options --------- Layout 0 ASCII 0 Keyboard 0 Movement Mouse Keybinds 0 Fullscreen 2 Font 24/Smallcaps Map View 38x25 Zoom Use 90% Tactical HUD 1 Map Filters NONE Filters NONE Steam 1 RUN: f442c015-208c-4394-ab96-1ce8e3aa176b